bitfinex/quotes_SOLUSD_20250714
["timestamp","ask_amount","ask_price","bid_price","bid_amount"]
[1752494765012,0.06,166.63,166.62,0.65]
[1752494765382,0.06,166.63,166.62,22.62490263]
[1752494766108,0.06,166.63,166.62,28.6265831]
[1752494766794,0.06,166.63,166.62,27.9765831]
[1752494767304,0.76,166.63,166.62,21.97490263]
[1752494767536,0.06,166.63,166.62,112.38636444]
[1752494767715,0.76,166.63,166.62,117.5765831]
[1752494768288,0.06,166.63,166.62,106.38468397]
[1752494768488,0.76,166.63,166.62,111.57490263]
[1752494768914,0.06,166.63,166.62,111.57490263]
[1752494769205,0.76,166.63,166.62,89.6]
[1752494769410,0.06,166.63,166.62,89.6]
[1752494769587,0.06,166.63,166.62,95.44021866]
[1752494770400,0.06,166.63,166.62,94.79021866]
[1752494770602,0.76,166.63,166.62,94.79021866]
[1752494770798,0.06,166.63,166.62,95.44021866]
[1752494771511,0.06,166.63,166.62,89.6]
[1752494771707,0.76,166.63,166.62,89.6]
[1752494771911,0.76,166.63,166.62,5.19021866]
[1752494772310,0.06,166.63,166.62,5.19021866]
[1752494772512,0.76,166.63,166.62,5.19021866]
[1752494772716,0.76,166.63,166.61,16.78468397]
[1752494772717,0.76,166.63,166.61,5.19021866]
[1752494773788,0.06,166.63,166.62,5.84021866]
[1752494774401,0.06,166.63,166.62,22.62490263]
[1752494774814,0.06,166.63,166.62,17.43468397]
[1752494774985,0.76,166.63,166.62,21.97490263]
[1752494775190,0.06,166.63,166.62,21.97490263]
[1752494775712,0.76,166.63,166.62,21.97490263]
[1752494775905,0.76,166.63,166.61,5.19021866]
[1752494776213,0.76,166.63,166.6,146.74]
[1752494776412,0.76,166.63,166.61,21.97490263]
[1752494777908,0.06,166.63,166.62,5.84021866]
[1752494778713,0.06,166.63,166.62,0.65]
[1752494779014,0.76,166.63,166.61,106.38468397]
[1752494779319,0.06,166.63,166.62,5.84021866]
[1752494780715,0.06,166.63,166.62,11.19189913]
[1752494781099,0.06,166.63,166.62,117.5765831]
[1752494781412,0.06,166.63,166.62,118.2265831]
[1752494781619,0.06,166.63,166.62,117.5765831]
[1752494781813,0.76,166.63,166.62,117.5765831]
[1752494782117,0.06,166.63,166.62,112.22490263]
[1752494782330,0.06,166.63,166.62,111.57490263]
[1752494782619,0.76,166.63,166.62,111.57490263]
[1752494783411,0.06,166.63,166.62,112.22490263]
[1752494784019,0.06,166.63,166.62,118.2265831]
[1752494787013,0.06,166.63,166.62,123.41680176]
[1752494787219,0.7,166.63,166.57,0.03]
[1752494787527,0.7,166.63,166.58,5.19021866]
[1752494787728,0.7,166.63,166.59,21.97490263]
[1752494787927,0.7,166.63,166.62,5.19021866]
[1752494788125,5.19021866,166.67,166.61,5.19021866]
[1752494788311,0.7,166.65,166.62,5.19021866]
[1752494788830,6.70069493,166.65,166.6,21.97490263]
[1752494789017,0.7,166.64,166.6,16.78468397]
[1752494789521,0.06,166.63,166.6,27.97725555]
[1752494789729,0.06,166.63,166.6,26.4665209]
[1752494789923,0.76,166.63,166.6,25.8165209]
[1752494790115,0.06,166.63,166.6,25.8165209]
[1752494790315,0.7,166.62,166.6,25.8165209]
[1752494790514,0.06,166.63,166.6,25.8165209]
[1752494790735,0.76,166.63,166.6,25.8165209]
[1752494791715,0.76,166.63,166.6,26.4665209]
[1752494792112,0.06,166.63,166.62,21.97490263]
[1752494792614,0.06,166.63,166.62,22.62490263]
[1752494793029,0.06,166.63,166.62,112.10490263]
[1752494793228,0.76,166.63,166.62,106.26468397]
[1752494794213,0.06,166.63,166.62,106.26468397]
[1752494794736,0.76,166.63,166.62,106.26468397]
[1752494795730,0.06,166.63,166.62,106.26468397]
[1752494795939,0.06,166.63,166.62,106.91468397]
[1752494796138,0.06,166.63,166.62,106.26468397]
[1752494796624,0.76,166.63,166.62,106.26468397]
[1752494799545,0.76,166.63,166.62,89.48]
[1752494800222,0.06,166.63,166.62,89.48]
[1752494800944,0.76,166.63,166.62,89.48]
[1752494801247,0.06,166.63,166.62,89.48]
[1752494801425,0.76,166.63,166.62,89.48]
[1752494801631,0.06,166.63,166.62,149.2265831]
[1752494802427,0.06,166.63,166.62,148.5765831]
[1752494802637,1.5346,166.69,166.63,16.78468397]
[1752494802839,1.5346,166.69,166.63,106.26468397]
[1752494803043,5.19021866,166.68,166.63,106.98468397]
[1752494803450,5.19021866,166.68,166.63,106.26468397]
[1752494803650,5.19021866,166.68,166.63,112.17490263]
[1752494803852,5.19021866,166.67,166.63,106.26468397]
[1752494804044,5.99952003,166.68,166.63,106.26468397]
[1752494804238,11.18973869,166.68,166.63,106.26468397]
[1752494804546,5.89021866,166.67,166.63,106.98468397]
[1752494804752,0.7,166.66,166.63,106.98468397]
[1752494806848,0.68,166.65,166.63,106.26468397]
[1752494807057,11.19014874,166.67,166.63,106.26468397]
[1752494807351,0.68,166.66,166.63,106.98468397]
[1752494807852,11.19014874,166.67,166.63,106.98468397]
[1752494808150,5.9995551,166.68,166.64,0.72]
[1752494808354,6.6795551,166.68,166.64,0.72]
[1752494808556,0.68,166.67,166.64,5.91021866]
[1752494808764,5.9995551,166.68,166.65,0.72]
[1752494809262,0.68,166.67,166.63,111.45490263]
[1752494809756,0.68,166.66,166.63,112.17490263]
[1752494809952,0.68,166.67,166.64,0.72]
[1752494810455,0.68,166.67,166.64,90.2]
[1752494810933,6.6795551,166.68,166.65,0.72]
[1752494811137,11.86977376,166.68,166.65,0.72]
[1752494811449,6.7395551,166.68,166.65,0.72]
[1752494811648,0.74,166.68,166.65,0.72]
[1752494812238,0.06,166.68,166.67,5.19021866]
[1752494812455,0.06,166.68,166.67,94.67021866]
[1752494812649,0.06,166.68,166.67,89.48]
[1752494815059,0.06,166.68,166.67,90.2]
[1752494815263,0.06,166.68,166.67,112.17490263]
[1752494817043,0.06,166.68,166.67,106.98468397]
[1752494817549,0.06,166.68,166.67,112.17490263]
[1752494818849,0.06,166.68,166.67,106.98468397]
[1752494819063,0.06,166.68,166.67,142.55490263]
[1752494819965,0.06,166.68,166.67,143.27490263]
[1752494820149,0.74,166.68,166.67,89.48]
[1752494820462,0.06,166.68,166.67,112.17490263]
[1752494820856,0.06,166.68,166.67,106.26468397]
[1752494821661,0.06,166.68,166.67,112.17490263]
[1752494822148,0.06,166.68,166.67,143.27490263]
[1752494822350,0.06,166.68,166.67,149.27478263]
[1752494823969,0.06,166.7,166.68,89.42]
[1752494824151,0.06,166.7,166.69,53.07490263]
[1752494824346,0.06,166.7,166.69,53.79490263]
[1752494824546,0.06,166.7,166.69,53.07490263]
[1752494824964,0.06,166.7,166.69,143.21490263]
[1752494825166,0.06,166.7,166.69,149.21406274]
[1752494827071,0.06,166.7,166.69,152.20285517]
[1752494827365,0.06,166.7,166.69,106.20468397]
[1752494827589,0.06,166.7,166.69,111.39490263]
[1752494827769,0.06,166.7,166.69,106.20468397]
[1752494827962,0.74,166.7,166.69,106.20468397]
[1752494828351,0.06,166.7,166.69,106.20468397]
[1752494828672,0.74,166.7,166.69,106.20468397]
[1752494829052,0.74,166.7,166.69,89.42]
[1752494829370,5.93021866,166.7,166.67,89.42]
[1752494829549,5.19021866,166.68,166.67,89.42]
[1752494829750,5.87021866,166.68,166.67,89.42]
[1752494830576,11.86973869,166.68,166.67,89.42]
[1752494832174,6.67952003,166.68,166.67,89.42]
[1752494832363,11.86973869,166.68,166.67,89.42]
[1752494832964,11.86973869,166.68,166.67,89.45]
[1752494833164,11.92973869,166.68,166.67,89.45]
[1752494834155,6.73952003,166.68,166.67,0.03]
[1752494834354,11.92973869,166.68,166.67,0.03]
[1752494841787,11.24973869,166.68,166.67,0.03]
[1752494842088,11.93973869,166.68,166.67,0.03]
[1752494846298,6.05952003,166.68,166.67,0.72]
[1752494846498,11.24973869,166.68,166.67,0.03]
[1752494846873,11.93973869,166.68,166.67,0.03]
[1752494849793,0.06,166.68,166.67,0.72]
[1752494850119,5.25021866,166.68,166.67,0.72]
[1752494850296,5.25021866,166.68,166.67,0.03]
[1752494850677,0.06,166.68,166.67,0.72]
[1752494850872,0.06,166.68,166.67,17.50468397]
[1752494851176,0.06,166.68,166.67,22.69490263]
[1752494851900,0.06,166.68,166.67,112.11490263]
[1752494852594,0.06,166.68,166.67,118.11478263]
[1752494853178,0.06,166.68,166.67,124.78078263]
[1752494854493,0.06,166.68,166.67,118.78090263]
[1752494855070,0.06,166.68,166.67,124.78078263]
[1752494855482,0.06,166.68,166.67,155.88078263]
[1752494855980,0.06,166.68,166.67,143.21490263]
[1752494856201,0.75,166.68,166.67,137.33468397]
[1752494856501,5.94021866,166.68,166.67,89.45]
[1752494856889,6.74952003,166.68,166.67,89.45]
[1752494857088,11.93973869,166.68,166.67,89.45]
[1752494857622,6.74952003,166.68,166.67,89.45]
[1752494857807,11.93973869,166.68,166.67,89.45]
[1752494858104,0.06,166.68,166.67,89.45]
[1752494858494,0.06,166.68,166.67,90.14]
[1752494859398,0.06,166.68,166.67,106.92468397]
[1752494859595,0.06,166.68,166.67,118.11478263]
[1752494859777,0.06,166.68,166.67,112.92456397]
[1752494859980,0.06,166.68,166.67,118.11478263]
[1752494862804,0.06,166.7,166.69,16.78468397]
[1752494863000,0.06,166.7,166.69,53.05490263]
[1752494863301,0.06,166.7,166.69,53.74490263]
[1752494864183,0.06,166.7,166.69,59.74406274]
[1752494868906,0.06,166.71,166.7,132.08468397]
[1752494869088,0.06,166.71,166.7,137.98490263]
[1752494869409,0.06,166.71,166.7,143.98370286]
[1752494872306,0.06,166.71,166.7,111.98490263]
[1752494872503,0.06,166.71,166.7,142.35490263]
[1752494872708,0.06,166.71,166.7,137.16468397]
[1752494872891,0.77,166.71,166.7,137.16468397]
[1752494874115,0.77,166.71,166.7,106.08468397]
[1752494874796,0.06,166.71,166.7,106.08468397]
[1752494875115,0.06,166.71,166.7,111.98490263]
[1752494875412,0.06,166.71,166.7,117.98370286]
[1752494876707,0.06,166.71,166.7,106.08468397]
[1752494877009,0.06,166.71,166.7,111.98490263]
[1752494877188,0.06,166.71,166.7,111.27490263]
[1752494878113,0.06,166.71,166.7,111.98490263]
[1752494878300,0.06,166.71,166.7,111.27490263]
[1752494881722,0.77,166.71,166.7,106.08468397]
[1752494882404,0.77,166.71,166.7,89.3]
[1752494886517,0.06,166.71,166.7,89.3]
[1752494886718,0.06,166.71,166.7,106.79468397]
[1752494887507,0.06,166.71,166.7,117.98370286]
[1752494887711,0.06,166.71,166.7,149.06370286]
[1752494888204,0.06,166.71,166.7,143.06490263]
[1752494890224,0.06,166.71,166.7,149.06370286]
[1752494893608,0.06,166.73,166.72,89.24]
[1752494893910,0.06,166.73,166.72,62.25021866]
[1752494894122,0.06,166.73,166.72,62.96021866]
[1752494894422,0.06,166.73,166.72,68.95829927]
[1752494896831,0.06,166.73,166.72,63.76808061]
[1752494897130,0.06,166.73,166.72,68.95829927]
[1752494897623,0.06,166.73,166.72,85.74298324]
[1752494897999,0.06,166.73,166.72,73.84468397]
[1752494898202,0.78,166.73,166.72,73.84468397]
[1752494898403,0.78,166.73,166.72,16.78468397]
[1752494899132,0.78,166.73,166.72,106.02468397]
[1752494899308,0.78,166.73,166.72,89.24]
[1752494899511,6.77772086,166.73,166.72,89.24]
[1752494899727,11.96793952,166.73,166.7,0.03]
[1752494899939,5.19021866,166.71,166.7,0.03]
[1752494900140,0.72,166.72,166.7,0.03]
[1752494900339,5.91021866,166.72,166.7,0.03]
[1752494900946,0.72,166.71,166.7,0.03]
[1752494901843,0.78,166.73,166.7,5.89021866]
[1752494902044,0.78,166.73,166.7,36.95021866]
[1752494902821,0.06,166.73,166.71,0.67]
[1752494903018,0.06,166.73,166.7,36.95021866]
[1752494903236,0.78,166.73,166.7,36.95021866]
[1752494903841,0.78,166.73,166.7,42.94901196]
[1752494904025,0.06,166.73,166.7,42.94901196]
[1752494904427,0.06,166.73,166.71,21.97490263]
[1752494904622,0.06,166.73,166.71,22.64490263]
[1752494904947,0.06,166.73,166.72,0.67]
[1752494905126,0.06,166.74,166.73,89.18]
[1752494905315,0.06,166.74,166.73,94.37021866]
[1752494905513,0.06,166.74,166.73,95.04021866]
[1752494906221,0.06,166.74,166.73,89.18]
[1752494906423,0.78,166.74,166.73,137.20468397]
[1752494906645,0.78,166.74,166.73,105.96468397]
[1752494906831,0.06,166.74,166.73,105.96468397]
[1752494907036,0.78,166.74,166.73,105.96468397]
[1752494907420,0.06,166.74,166.73,105.96468397]
[1752494908540,0.06,166.74,166.73,111.15490263]
[1752494908850,0.06,166.74,166.73,111.82490263]
[1752494909032,0.06,166.74,166.73,111.15490263]
[1752494909226,0.06,166.74,166.73,105.96468397]
[1752494911141,0.06,166.74,166.73,111.15490263]
[1752494912046,0.06,166.74,166.73,111.82490263]
[1752494912422,0.06,166.74,166.73,117.82262349]
[1752494913730,0.06,166.74,166.73,112.63240483]
[1752494913924,0.06,166.74,166.73,117.82262349]
[1752494914548,0.06,166.74,166.73,105.96468397]
[1752494914746,0.06,166.74,166.73,111.82490263]
[1752494915048,0.06,166.74,166.73,117.82262349]
[1752494915751,0.06,166.74,166.73,106.63468397]
[1752494915936,0.06,166.74,166.73,111.15490263]
[1752494916253,0.06,166.74,166.73,111.82490263]
[1752494916627,0.06,166.74,166.73,117.82262349]
[1752494916849,0.78,166.77,166.75,16.78468397]
[1752494917020,0.78,166.77,166.75,137.14468397]
[1752494918137,0.78,166.77,166.75,142.33490263]
[1752494918138,0.72,166.76,166.75,142.33490263]
[1752494918750,0.06,166.77,166.75,142.33490263]
[1752494919061,0.06,166.77,166.76,21.97490263]
[1752494920231,0.06,166.77,166.76,105.90468397]
[1752494920539,0.06,166.77,166.76,111.09490263]
[1752494922533,0.78,166.77,166.76,111.09490263]
[1752494923153,0.78,166.77,166.76,105.90468397]
[1752494923650,6.7762823,166.77,166.76,89.12]
[1752494923951,0.78,166.77,166.76,89.12]
[1752494924435,0.06,166.77,166.76,89.12]
[1752494924640,0.06,166.77,166.76,105.90468397]
[1752494925957,0.06,166.77,166.76,111.09490263]
[1752494926261,0.06,166.77,166.76,105.90468397]
[1752494926476,0.77,166.77,166.76,105.90468397]
[1752494928058,6.7662823,166.77,166.76,89.12]
[1752494929265,0.77,166.77,166.76,89.12]
[1752494930570,0.06,166.77,166.76,106.57468397]
[1752494930930,0.06,166.77,166.76,142.94490263]
[1752494931662,0.06,166.78,166.77,89.06]
[1752494931860,0.06,166.78,166.77,111.70490263]
[1752494932234,0.06,166.78,166.77,117.70118493]
[1752494932857,0.06,166.78,166.77,112.51096627]
[1752494933057,0.06,166.78,166.77,117.70118493]
[1752494934744,0.06,166.78,166.77,118.30081316]
[1752494934958,0.06,166.78,166.77,124.29981316]
[1752494935162,0.06,166.78,166.77,117.70118493]
[1752494935862,0.06,166.78,166.77,123.70018493]
[1752494937453,0.06,166.78,166.77,117.70118493]
[1752494937649,0.06,166.81,166.8,88.88]
[1752494937855,0.06,166.81,166.8,125.19021866]
[1752494938050,0.06,166.81,166.8,125.86021866]
[1752494938362,0.06,166.81,166.8,148.64010646]
[1752494938775,0.06,166.81,166.8,142.64490263]
[1752494938948,0.06,166.81,166.8,148.64010646]
[1752494939758,0.06,166.81,166.8,153.83032512]
[1752494940768,0.06,166.81,166.8,141.97490263]
[1752494940951,0.06,166.81,166.8,149.00585367]
[1752494941151,0.77,166.81,166.8,148.2008685]
[1752494941358,0.77,166.81,166.8,136.78468397]
[1752494941563,0.77,166.81,166.8,141.97490263]
[1752494941759,0.77,166.81,166.8,105.66468397]
[1752494941956,5.96021866,166.81,166.8,88.88]
[1752494942646,11.95506309,166.81,166.77,88.88]
[1752494942846,5.19021866,166.78,166.77,88.88]
[1752494943047,5.90021866,166.78,166.77,88.88]
[1752494943362,0.71,166.78,166.77,105.66468397]
[1752494944157,0.71,166.8,166.78,16.78468397]
[1752494944363,0.06,166.81,166.79,5.19021866]
[1752494944565,0.77,166.81,166.78,47.90468397]
[1752494944758,0.77,166.81,166.79,5.19021866]
[1752494945265,0.77,166.81,166.8,16.78468397]
[1752494946458,0.77,166.81,166.8,21.97490263]
[1752494946775,0.06,166.81,166.8,21.97490263]
[1752494946950,0.77,166.81,166.8,16.78468397]
[1752494947148,0.77,166.81,166.8,47.88468397]
[1752494947471,0.06,166.81,166.8,53.07490263]
[1752494948853,0.06,166.81,166.8,53.74490263]
[1752494949060,0.06,166.81,166.8,64.93032512]
[1752494949482,0.2,166.82,166.81,88.82]
[1752494949649,0.2,166.82,166.81,94.01021866]
[1752494949980,0.2,166.82,166.81,94.68021866]
[1752494951179,0.2,166.82,166.81,100.67506309]
[1752494951979,0.91,166.82,166.81,94.01021866]
[1752494952284,0.2,166.82,166.81,97.70596858]
[1752494952485,0.2,166.82,166.81,103.70081301]
[1752494953977,0.2,166.82,166.81,120.48549698]
[1752494955254,0.2,166.82,166.81,126.48449698]
[1752494955476,0.2,166.82,166.81,120.48549698]
[1752494955985,0.2,166.82,166.81,126.48449698]
[1752494956286,0.2,166.84,166.83,42.78468397]
[1752494956464,0.2,166.84,166.83,173.88902838]
[1752494956664,0.2,166.84,166.83,174.59902838]
[1752494958475,0.2,166.84,166.83,180.59802838]
[1752494958684,0.2,166.84,166.83,143.49902838]
[1752494958982,0.2,166.84,166.83,174.57902838]
[1752494959687,0.2,166.84,166.83,180.57802838]
[1752494961292,0.06,166.89,166.87,16.78468397]
[1752494961489,0.06,166.89,166.88,53.05490263]
[1752494961675,0.06,166.89,166.87,88.56]
[1752494962264,0.66,166.88,166.87,88.56]
[1752494963166,0.72,166.89,166.87,93.75021866]
[1752494963366,0.72,166.89,166.88,5.19021866]
[1752494963367,0.06,166.89,166.88,5.19021866]
[1752494963893,0.72,166.89,166.88,5.19021866]
[1752494964069,0.72,166.89,166.87,119.8]
[1752494964268,0.06,166.89,166.88,27.87512129]
[1752494964689,0.06,166.89,166.88,22.68490263]
[1752494965279,0.06,166.89,166.88,27.87512129]
[1752494965484,0.06,166.89,166.88,33.8674511]
[1752494967491,0.06,166.89,166.88,23.48701378]
[1752494967688,0.06,166.89,166.88,33.8674511]
[1752494968288,0.1,166.95,166.93,16.78468397]
[1752494968477,0.1,166.95,166.94,53.21490263]
[1752494968792,0.1,166.95,166.94,53.92490263]
[1752494969586,0.1,166.95,166.94,59.91507874]
[1752494971407,0.76,166.95,166.94,48.02468397]
[1752494971692,0.76,166.95,166.94,16.78468397]
[1752494971891,0.1,166.95,166.94,110.43490263]
[1752494972100,0.1,166.95,166.94,105.24468397]
[1752494972282,0.76,166.95,166.94,110.43490263]
[1752494972672,0.76,166.95,166.94,141.65490263]
[1752494972870,0.76,166.95,166.94,105.24468397]
[1752494973089,0.76,166.95,166.94,88.46]
[1752494974180,6.74981731,166.95,166.94,88.46]
[1752494974884,1.6493,166.94,166.91,136.46468397]
[1752494975181,0.66,166.93,166.91,105.24468397]
[1752494975685,0.66,166.93,166.91,110.43490263]
[1752494977083,0.76,166.95,166.92,5.19021866]
[1752494977288,0.66,166.94,166.92,21.97490263]
[1752494977480,0.66,166.94,166.92,53.19490263]
[1752494977884,0.66,166.94,166.92,48.00468397]
[1752494979001,0.66,166.94,166.92,136.46468397]
[1752494980227,5.99021509,166.94,166.92,136.46468397]
[1752494980409,0.66,166.93,166.92,136.46468397]
[1752494980800,0.66,166.93,166.92,105.24468397]
[1752494981804,6.08995553,166.95,166.92,105.24468397]
[1752494981987,0.66,166.94,166.92,105.24468397]
[1752494982885,6.08995553,166.95,166.93,47.94468397]
[1752494982886,0.1,166.95,166.93,47.94468397]
[1752494983083,0.1,166.95,166.93,141.59490263]
[1752494983302,0.1,166.95,166.93,142.30490263]
[1752494984493,0.1,166.95,166.93,141.59490263]
[1752494985009,11.28003923,166.95,166.93,88.46]
[1752494985201,5.87021866,166.94,166.93,88.46]
[1752494985394,0.68,166.94,166.93,88.46]
[1752494985590,0.1,166.95,166.94,16.78468397]
[1752494986110,0.78,166.95,166.94,16.78468397]
[1752494987889,0.78,166.95,166.94,105.24468397]
[1752494989014,11.96003597,166.95,166.94,88.46]
[1752494994100,11.96003597,166.95,166.91,88.49]
[1752494994298,5.19021866,166.92,166.91,88.49]
[1752494994499,5.87021866,166.92,166.91,88.49]
[1752494995514,0.68,166.92,166.91,88.49]
[1752494996103,11.8611125,166.92,166.91,88.49]
[1752494998136,5.99089384,166.92,166.91,88.49]
[1752494998512,5.99066157,166.93,166.91,88.49]
[1752494998715,11.86088023,166.93,166.91,88.49]
[1752495000039,11.18088023,166.93,166.91,88.49]
[1752495000214,0.68,166.92,166.91,88.49]
[1752495000611,5.87021866,166.92,166.91,88.49]
[1752495000816,7.52611866,166.92,166.91,0.03]
[1752495001805,13.5170125,166.92,166.91,0.03]
[1752495002304,5.99089384,166.92,166.91,0.03]
[1752495002528,0.68,166.94,166.91,0.03]
[1752495003035,0.68,166.93,166.91,0.03]
[1752495003217,11.8605233,166.94,166.91,0.03]
[1752495003406,6.67030464,166.94,166.91,0.03]
[1752495003607,6.67030464,166.94,166.91,0.7]
[1752495004517,6.67030464,166.94,166.91,0.03]
[1752495005606,6.67030464,166.94,166.91,88.49]
[1752495006313,0.68,166.93,166.91,88.49]
[1752495006618,11.1805233,166.94,166.91,88.49]
[1752495006826,11.9205233,166.94,166.91,88.49]
[1752495007215,6.73030464,166.94,166.91,89.16]
[1752495007427,0.06,166.94,166.91,94.35021866]
[1752495007725,0.06,166.94,166.92,16.78468397]
[1752495007916,6.730213,166.94,166.92,16.78468397]
[1752495008432,0.74,166.94,166.92,16.78468397]
[1752495008730,6.73023075,166.94,166.92,16.78468397]
[1752495008912,0.68,166.93,166.92,16.78468397]
[1752495010122,11.24044941,166.94,166.92,16.78468397]
[1752495010123,6.05023075,166.94,166.92,16.78468397]
[1752495010321,11.92044941,166.94,166.91,88.49]
[1752495010632,0.68,166.93,166.91,88.49]
[1752495011417,11.24044941,166.94,166.91,88.49]
[1752495011622,11.92044941,166.94,166.91,88.49]
[1752495012029,11.24044941,166.94,166.91,88.49]
[1752495012233,0.68,166.93,166.91,88.49]
[1752495012744,6.67070385,166.93,166.91,88.49]
[1752495014032,5.99070385,166.93,166.91,88.49]
[1752495014441,11.92050307,166.94,166.91,89.16]
[1752495014625,6.05028441,166.94,166.91,89.16]
[1752495015638,6.05028441,166.94,166.91,88.49]
[1752495015847,6.05028441,166.94,166.91,89.16]
[1752495018344,0.06,166.94,166.92,17.45468397]
[1752495018553,0.06,166.94,166.93,0.67]
[1752495018752,0.06,166.94,166.93,22.64490263]
[1752495019126,0.06,166.94,166.93,111.10490263]
[1752495020268,0.06,166.94,166.93,105.91468397]
[1752495020546,0.06,166.94,166.93,111.10490263]
[1752495023023,0.06,166.94,166.93,105.91468397]
[1752495023251,0.06,166.94,166.93,111.10490263]
[1752495023750,0.06,166.94,166.93,117.09543758]
[1752495026059,0.06,166.94,166.93,123.27093758]
[1752495027959,0.06,166.94,166.93,129.25693758]
[1752495029260,0.1,166.99,166.95,88.3]
[1752495029429,0.1,166.99,166.98,5.19021866]
[1752495029851,0.79,166.99,166.97,21.97490263]
[1752495030964,6.77838253,166.99,166.97,21.97490263]
[1752495032564,0.1,166.99,166.97,21.97490263]
[1752495033368,0.1,166.99,166.98,5.19021866]
[1752495033667,0.1,166.99,166.97,17.45468397]
[1752495033870,0.1,166.99,166.97,22.64490263]
[1752495034367,0.1,166.99,166.98,53.68490263]
[1752495038273,0.1,166.99,166.98,141.98490263]
[1752495038572,0.1,166.99,166.98,147.97364379]
[1752495039668,5.98600186,167.06,167.02,16.78468397]
[1752495039872,0.69,167.05,167.02,135.94468397]
[1752495040052,0.69,167.05,167.02,104.92468397]
[1752495040447,5.19021866,167.03,167.01,88.14]
[1752495040770,5.88021866,167.02,167.01,88.14]
[1752495040947,0.69,167.02,166.98,141.13490263]
[1752495041142,5.19021866,167.03,166.98,141.13490263]
[1752495041346,0.69,167.01,166.98,141.80490263]
[1752495042155,5.98700759,167.03,167.0,5.19021866]
[1752495042446,0.69,167.02,166.98,141.13490263]
[1752495042646,5.98700759,167.03,166.99,5.19021866]
[1752495042843,0.69,167.03,167.0,5.86021866]
[1752495043057,0.69,167.03,167.0,36.88021866]
[1752495044157,8.1907236,167.04,167.01,16.78468397]
[1752495044350,0.69,167.03,167.01,16.78468397]
[1752495044672,2.204,167.04,167.02,5.19021866]
[1752495044864,6.64599458,167.06,167.03,5.19021866]
[1752495045043,6.64599458,167.06,167.03,93.33021866]
[1752495046062,0.66,167.05,167.03,93.33021866]
[1752495047875,6.64633599,167.05,167.03,88.14]
[1752495049879,0.66,167.04,167.03,88.14]
[1752495050085,5.85021866,167.04,167.03,88.14]
[1752495050677,0.66,167.04,167.03,88.14]
[1752495051090,5.85021866,167.04,167.03,88.14]
[1752495051999,11.83680869,167.04,167.03,88.14]
[1752495052691,6.64659003,167.04,167.03,88.14]
[1752495052994,11.83680869,167.04,167.03,88.14]
[1752495053401,11.83680869,167.04,167.01,104.92468397]
[1752495053599,0.66,167.03,167.01,88.14]
[1752495053795,11.17680869,167.04,167.01,88.14]
[1752495053997,0.66,167.02,167.01,88.14]
[1752495054186,5.9873069,167.02,167.01,88.14]
[1752495057091,6.6473069,167.02,167.01,88.14]
[1752495058401,5.9873069,167.02,167.01,88.14]
[1752495058983,5.9873069,167.02,167.01,88.81]
[1752495059795,5.9873069,167.02,167.01,88.14]
[1752495060498,5.19021866,167.02,167.01,88.14]
[1752495060704,5.85021866,167.02,167.01,88.14]
[1752495061002,7.37451866,167.02,166.97,58.04999428]
[1752495061317,5.19021866,166.99,166.97,58.04999428]
[1752495061516,0.66,167.01,166.97,58.04999428]
[1752495061728,1.5243,167.02,166.97,58.04999428]
[1752495061729,0.66,166.98,166.97,58.04999428]
[1752495062495,6.64874116,166.98,166.97,58.04999428]